[Event "Titled Tuesday Blitz May 17 Late 2022"]
[White "Ostrovskiy, Aleksandr"]
[Black "Salem, A.R. Saleh"]
[WhiteFideId "2034239"]
[BlackFideId "9301348"]
[WhiteElo "2340"]
[BlackElo "2679"]
[Result "0-1"]
[Round "03"]
[TimeControl "180+1"]
[Date "2022.05.17"]
[WhiteClock "0:00:02"]
[BlackClock "0:00:50"]

1. d4 {[%clk 0:03:00]}  Nf6 {[%clk 0:02:59]} 2. Bf4 {[%clk 0:02:58]}  g6 {[%clk 0:02:59]} 3. Nc3 {[%clk 0:02:58]}  d5 {[%clk 0:03:00]} 4. e3 {[%clk 0:02:58]}  Bg7 {[%clk 0:03:00]} 5. h4 {[%clk 0:02:55]}  h5 {[%clk 0:03:01]} 6. Nf3 {[%clk 0:02:55]}  O-O {[%clk 0:03:01]} 7. Ne5 {[%clk 0:02:53]}  c5 {[%clk 0:03:01]} 8. Qd2 {[%clk 0:02:50]}  Nc6 {[%clk 0:03:01]} 9. Be2 {[%clk 0:02:42]}  Bf5 {[%clk 0:03:01]} 10. dxc5 {[%clk 0:02:30]}  Ne4 {[%clk 0:02:39]} 11. Nxc6 {[%clk 0:02:19]}  bxc6 {[%clk 0:02:31]} 12. Nxe4 {[%clk 0:02:19]}  Bxe4 {[%clk 0:02:32]} 13. f3 {[%clk 0:02:19]}  Bf5 {[%clk 0:02:32]} 14. c3 {[%clk 0:02:15]}  e5 {[%clk 0:02:24]} 15. Bg3 {[%clk 0:02:14]}  a5 {[%clk 0:02:17]} 16. O-O {[%clk 0:02:07]}  Qe7 {[%clk 0:02:11]} 17. b4 {[%clk 0:02:02]}  Bf6 {[%clk 0:02:06]} 18. Qe1 {[%clk 0:01:30]}  e4 {[%clk 0:02:04]} 19. Bd6 {[%clk 0:01:17]}  Qe6 {[%clk 0:01:50]} 20. Bxf8 {[%clk 0:01:11]}  Rxf8 {[%clk 0:01:51]} 21. Rd1 {[%clk 0:00:55]}  Qe7 {[%clk 0:01:45]} 22. g3 {[%clk 0:00:53]}  axb4 {[%clk 0:01:36]} 23. cxb4 {[%clk 0:00:51]}  Ra8 {[%clk 0:01:37]} 24. fxe4 {[%clk 0:00:41]}  Bxe4 {[%clk 0:01:27]} 25. Bf3 {[%clk 0:00:34]}  Bf5 {[%clk 0:01:16]} 26. Rf2 {[%clk 0:00:33]}  Be5 {[%clk 0:01:12]} 27. Re2 {[%clk 0:00:29]}  Ra3 {[%clk 0:01:05]} 28. Qf2 {[%clk 0:00:24]}  Bd3 {[%clk 0:00:53]} 29. Red2 {[%clk 0:00:22]}  Bb5 {[%clk 0:00:54]} 30. Be2 {[%clk 0:00:16]}  Ba4 {[%clk 0:00:53]} 31. Rf1 {[%clk 0:00:14]}  Bc3 {[%clk 0:00:53]} 32. Rdd1 {[%clk 0:00:05]}  Bxd1 {[%clk 0:00:51]} 33. Bxd1 {[%clk 0:00:04]}  Bxb4 {[%clk 0:00:50]} 34. e4 {[%clk 0:00:02]}  Bxc5 {[%clk 0:00:50]} 0-1


[Site "https://www.chess.com"]

[Event "Titled Tuesday Blitz May 17 Late 2022"]
[White "Riehle, Marco"]
[Black "Karttunen, Mika"]
[WhiteFideId "12904392"]
[BlackFideId "502081"]
[WhiteElo "2462"]
[BlackElo "2343"]
[Result "1-0"]
[Round "03"]
[TimeControl "180+1"]
[Date "2022.05.17"]
[WhiteClock "0:01:31"]
[BlackClock "0:00:08"]

1. e4 {[%clk 0:02:59]}  e6 {[%clk 0:02:58]} 2. c4 {[%clk 0:02:58]}  d5 {[%clk 0:02:58]} 3. cxd5 {[%clk 0:02:59]}  exd5 {[%clk 0:02:58]} 4. Qb3 {[%clk 0:03:00]}  Nf6 {[%clk 0:02:50]} 5. e5 {[%clk 0:03:00]}  Ne4 {[%clk 0:02:50]} 6. Nc3 {[%clk 0:03:01]}  Nxc3 {[%clk 0:02:45]} 7. bxc3 {[%clk 0:03:02]}  Be7 {[%clk 0:02:43]} 8. d4 {[%clk 0:03:00]}  O-O {[%clk 0:02:43]} 9. Nf3 {[%clk 0:02:57]}  c5 {[%clk 0:02:33]} 10. Be2 {[%clk 0:02:57]}  c4 {[%clk 0:02:28]} 11. Qc2 {[%clk 0:02:48]}  Nc6 {[%clk 0:02:27]} 12. O-O {[%clk 0:02:48]}  f6 {[%clk 0:02:21]} 13. a4 {[%clk 0:02:40]}  fxe5 {[%clk 0:02:11]} 14. Nxe5 {[%clk 0:02:41]}  Nxe5 {[%clk 0:02:04]} 15. dxe5 {[%clk 0:02:41]}  Bf5 {[%clk 0:02:03]} 16. Qb2 {[%clk 0:02:33]}  Qc7 {[%clk 0:01:56]} 17. Be3 {[%clk 0:02:31]}  b6 {[%clk 0:01:52]} 18. Bd4 {[%clk 0:02:28]}  Be4 {[%clk 0:01:36]} 19. f3 {[%clk 0:02:26]}  Bf5 {[%clk 0:01:32]} 20. Qd2 {[%clk 0:02:20]}  Rae8 {[%clk 0:01:25]} 21. f4 {[%clk 0:02:14]}  Be4 {[%clk 0:01:17]} 22. Bf3 {[%clk 0:02:11]}  Bc5 {[%clk 0:01:06]} 23. Bxe4 {[%clk 0:02:03]}  dxe4 {[%clk 0:01:06]} 24. Qe3 {[%clk 0:02:04]}  Qc6 {[%clk 0:00:40]} 25. Bxc5 {[%clk 0:01:59]}  bxc5 {[%clk 0:00:38]} 26. Rae1 {[%clk 0:01:59]}  Qxa4 {[%clk 0:00:16]} 27. Qxc5 {[%clk 0:01:59]}  Rc8 {[%clk 0:00:12]} 28. Qd5+ {[%clk 0:01:58]}  Kh8 {[%clk 0:00:12]} 29. Qxe4 {[%clk 0:01:56]}  Qc6 {[%clk 0:00:11]} 30. Qxc6 {[%clk 0:01:49]}  Rxc6 {[%clk 0:00:11]} 31. Ra1 {[%clk 0:01:49]}  a6 {[%clk 0:00:11]} 32. g3 {[%clk 0:01:50]}  g6 {[%clk 0:00:11]} 33. Rfd1 {[%clk 0:01:48]}  Rb8 {[%clk 0:00:11]} 34. Kg2 {[%clk 0:01:45]}  Rb2+ {[%clk 0:00:11]} 35. Kh3 {[%clk 0:01:45]}  Rb3 {[%clk 0:00:11]} 36. Rac1 {[%clk 0:01:30]}  a5 {[%clk 0:00:11]} 37. Rd7 {[%clk 0:01:31]}  a4 {[%clk 0:00:10]} 38. Ra7 {[%clk 0:01:31]}  a3 {[%clk 0:00:10]} 39. Rd1 {[%clk 0:01:32]}  Rc8 {[%clk 0:00:08]} 40. Rdd7 {[%clk 0:01:32]}  Rxc3 {[%clk 0:00:09]} 41. Rxh7+ {[%clk 0:01:32]}  Kg8 {[%clk 0:00:09]} 42. Rhg7+ {[%clk 0:01:33]}  Kf8 {[%clk 0:00:09]} 43. e6 {[%clk 0:01:31]}  Re3 {[%clk 0:00:08]} 44. Raf7+ {[%clk 0:01:31]} 1-0


[Site "https://www.chess.com"]

[Event "Titled Tuesday Blitz May 17 Late 2022"]
[White "Rustemov, Alexander"]
[Black "Svane, Rasmus"]
[WhiteFideId "4119002"]
[BlackFideId "4657101"]
[WhiteElo "2787"]
[BlackElo "2674"]
[Result "1/2-1/2"]
[Round "03"]
[TimeControl "180+1"]
[Date "2022.05.17"]
[WhiteClock "0:00:50"]
[BlackClock "0:00:21"]

1. d4 {[%clk 0:03:00]}  Nf6 {[%clk 0:02:59]} 2. c4 {[%clk 0:03:01]}  e6 {[%clk 0:02:59]} 3. Nf3 {[%clk 0:03:01]}  d5 {[%clk 0:03:00]} 4. Nc3 {[%clk 0:03:01]}  h6 {[%clk 0:03:00]} 5. Bf4 {[%clk 0:02:54]}  Bd6 {[%clk 0:02:57]} 6. Bxd6 {[%clk 0:02:50]}  Qxd6 {[%clk 0:02:58]} 7. e3 {[%clk 0:02:49]}  O-O {[%clk 0:02:58]} 8. Rc1 {[%clk 0:02:43]}  Qe7 {[%clk 0:02:58]} 9. Qc2 {[%clk 0:02:40]}  Nbd7 {[%clk 0:02:39]} 10. cxd5 {[%clk 0:02:39]}  exd5 {[%clk 0:02:38]} 11. Bd3 {[%clk 0:02:39]}  Nb6 {[%clk 0:02:32]} 12. h3 {[%clk 0:02:39]}  Be6 {[%clk 0:02:30]} 13. O-O {[%clk 0:02:39]}  c6 {[%clk 0:02:18]} 14. Na4 {[%clk 0:02:39]}  Nxa4 {[%clk 0:02:17]} 15. Qxa4 {[%clk 0:02:39]}  Ne8 {[%clk 0:02:12]} 16. Qc2 {[%clk 0:02:31]}  Nd6 {[%clk 0:02:11]} 17. Ne5 {[%clk 0:02:29]}  Rfc8 {[%clk 0:02:06]} 18. Qc5 {[%clk 0:02:18]}  Qd8 {[%clk 0:02:00]} 19. Rc2 {[%clk 0:02:17]}  Bf5 {[%clk 0:01:59]} 20. Bxf5 {[%clk 0:02:11]}  Nxf5 {[%clk 0:02:00]} 21. Rfc1 {[%clk 0:02:10]}  Nd6 {[%clk 0:02:00]} 22. Qa3 {[%clk 0:02:03]}  a6 {[%clk 0:01:48]} 23. Qd3 {[%clk 0:02:02]}  Rc7 {[%clk 0:01:46]} 24. b3 {[%clk 0:01:58]}  Qf6 {[%clk 0:01:45]} 25. Qd1 {[%clk 0:01:57]}  Re8 {[%clk 0:01:44]} 26. Qf3 {[%clk 0:01:56]}  Qd8 {[%clk 0:01:37]} 27. a4 {[%clk 0:01:55]}  Rce7 {[%clk 0:01:36]} 28. Nd3 {[%clk 0:01:46]}  Re6 {[%clk 0:01:35]} 29. Nc5 {[%clk 0:01:45]}  Rf6 {[%clk 0:01:35]} 30. Qg3 {[%clk 0:01:44]}  Rg6 {[%clk 0:01:35]} 31. Qf4 {[%clk 0:01:41]}  Rf6 {[%clk 0:01:31]} 32. Qg3 {[%clk 0:01:41]}  Qe7 {[%clk 0:01:30]} 33. b4 {[%clk 0:01:39]}  Rg6 {[%clk 0:01:24]} 34. Qf4 {[%clk 0:01:38]}  Rf6 {[%clk 0:01:21]} 35. Qg3 {[%clk 0:01:38]}  g6 {[%clk 0:01:10]} 36. Rb1 {[%clk 0:01:27]}  Kh7 {[%clk 0:01:09]} 37. Kh1 {[%clk 0:01:25]}  Rf5 {[%clk 0:01:07]} 38. Re1 {[%clk 0:01:14]}  Rg5 {[%clk 0:01:06]} 39. Qf4 {[%clk 0:01:13]}  Rf5 {[%clk 0:01:04]} 40. Qg3 {[%clk 0:01:13]}  h5 {[%clk 0:01:02]} 41. Rce2 {[%clk 0:01:12]}  Qd8 {[%clk 0:00:55]} 42. a5 {[%clk 0:01:06]}  Kg8 {[%clk 0:00:51]} 43. f3 {[%clk 0:01:04]}  Rg5 {[%clk 0:00:44]} 44. Qf2 {[%clk 0:01:01]}  Rf5 {[%clk 0:00:41]} 45. Qg3 {[%clk 0:00:58]}  Rg5 {[%clk 0:00:26]} 46. Qf4 {[%clk 0:00:57]}  Rf5 {[%clk 0:00:21]} 47. Qg3 {[%clk 0:00:50]} 1/2-1/2


[Site "https://www.chess.com"]

[Event "Titled Tuesday Blitz May 17 Late 2022"]
[White "Steinberg, Nitzan"]
[Black "Ivanisevic, Ivan"]
[WhiteFideId "2801795"]
[BlackFideId "912417"]
[WhiteElo "2471"]
[BlackElo "2495"]
[Result "1-0"]
[Round "03"]
[TimeControl "180+1"]
[Date "2022.05.17"]
[WhiteClock "0:00:48"]
[BlackClock "0:00:21"]

1. e4 {[%clk 0:03:00]}  e5 {[%clk 0:02:55]} 2. Nf3 {[%clk 0:03:01]}  Nc6 {[%clk 0:02:55]} 3. Bb5 {[%clk 0:03:01]}  a6 {[%clk 0:02:55]} 4. Ba4 {[%clk 0:03:02]}  Bc5 {[%clk 0:02:55]} 5. c3 {[%clk 0:03:02]}  Nge7 {[%clk 0:02:55]} 6. O-O {[%clk 0:03:02]}  Ba7 {[%clk 0:02:54]} 7. d4 {[%clk 0:03:01]}  Ng6 {[%clk 0:02:55]} 8. Re1 {[%clk 0:02:59]}  O-O {[%clk 0:02:51]} 9. h3 {[%clk 0:02:58]}  d6 {[%clk 0:02:01]} 10. Be3 {[%clk 0:02:56]}  exd4 {[%clk 0:01:58]} 11. cxd4 {[%clk 0:02:55]}  b5 {[%clk 0:01:58]} 12. Bb3 {[%clk 0:02:54]}  Na5 {[%clk 0:01:58]} 13. Bc2 {[%clk 0:02:54]}  c5 {[%clk 0:01:58]} 14. d5 {[%clk 0:02:44]}  Nc4 {[%clk 0:01:56]} 15. Bc1 {[%clk 0:02:43]}  f5 {[%clk 0:01:51]} 16. Bg5 {[%clk 0:02:23]}  Qb6 {[%clk 0:01:47]} 17. b3 {[%clk 0:02:14]}  Nce5 {[%clk 0:01:45]} 18. Nxe5 {[%clk 0:01:52]}  Nxe5 {[%clk 0:01:46]} 19. exf5 {[%clk 0:01:46]}  Bxf5 {[%clk 0:01:47]} 20. Nc3 {[%clk 0:01:46]}  c4 {[%clk 0:01:26]} 21. Be3 {[%clk 0:01:46]}  Qa5 {[%clk 0:01:24]} 22. Bxf5 {[%clk 0:01:38]}  Rxf5 {[%clk 0:01:22]} 23. Ne4 {[%clk 0:01:35]}  Nd3 {[%clk 0:01:15]} 24. Qg4 {[%clk 0:01:19]}  Raf8 {[%clk 0:01:02]} 25. Bxa7 {[%clk 0:01:03]}  Nxe1 {[%clk 0:01:01]} 26. Bd4 {[%clk 0:01:02]}  g6 {[%clk 0:00:54]} 27. Bc3 {[%clk 0:00:58]}  b4 {[%clk 0:00:45]} 28. Bxe1 {[%clk 0:00:58]}  c3 {[%clk 0:00:45]} 29. Nxd6 {[%clk 0:00:57]}  Re5 {[%clk 0:00:31]} 30. Nc4 {[%clk 0:00:53]}  Qxd5 {[%clk 0:00:21]} 31. Nxe5 {[%clk 0:00:53]}  Qxe5 {[%clk 0:00:22]} 32. Qxb4 {[%clk 0:00:48]}  c2 {[%clk 0:00:21]} 33. Qc4+ {[%clk 0:00:48]} 1-0


[Site "https://www.chess.com"]

[Event "Titled Tuesday Blitz May 17 Late 2022"]
[White "Tologon tegin, Semetei"]
[Black "Holt, Conrad"]
[WhiteFideId "13800574"]
[BlackFideId "2034387"]
[WhiteElo "2258"]
[BlackElo "2586"]
[Result "0-1"]
[Round "03"]
[TimeControl "180+1"]
[Date "2022.05.17"]
[WhiteClock "0:00:01"]
[BlackClock "0:00:51"]

1. e4 {[%clk 0:02:51]}  e6 {[%clk 0:02:59]} 2. d4 {[%clk 0:02:49]}  d5 {[%clk 0:02:59]} 3. Nc3 {[%clk 0:02:49]}  Nf6 {[%clk 0:02:57]} 4. e5 {[%clk 0:02:49]}  Nfd7 {[%clk 0:02:58]} 5. f4 {[%clk 0:02:50]}  c5 {[%clk 0:02:58]} 6. Nf3 {[%clk 0:02:50]}  Nc6 {[%clk 0:02:59]} 7. Be3 {[%clk 0:02:50]}  cxd4 {[%clk 0:02:59]} 8. Nxd4 {[%clk 0:02:50]}  Bc5 {[%clk 0:03:00]} 9. Qd2 {[%clk 0:02:48]}  O-O {[%clk 0:03:00]} 10. Be2 {[%clk 0:02:38]}  Qe7 {[%clk 0:02:56]} 11. O-O {[%clk 0:02:33]}  f6 {[%clk 0:02:56]} 12. exf6 {[%clk 0:02:31]}  Nxf6 {[%clk 0:02:56]} 13. Kh1 {[%clk 0:02:27]}  Bd7 {[%clk 0:02:52]} 14. Rae1 {[%clk 0:02:27]}  Rac8 {[%clk 0:02:47]} 15. Bf3 {[%clk 0:02:24]}  Bb4 {[%clk 0:02:45]} 16. Bg1 {[%clk 0:01:52]}  Na5 {[%clk 0:02:30]} 17. Qd3 {[%clk 0:01:32]}  Nc4 {[%clk 0:02:15]} 18. Nxd5 {[%clk 0:00:55]}  Nxd5 {[%clk 0:02:14]} 19. Rxe6 {[%clk 0:00:55]}  Bxe6 {[%clk 0:01:44]} 20. Nxe6 {[%clk 0:00:54]}  Nf6 {[%clk 0:01:40]} 21. Nxf8 {[%clk 0:00:49]}  Kxf8 {[%clk 0:01:39]} 22. b3 {[%clk 0:00:38]}  Nd2 {[%clk 0:01:33]} 23. Rd1 {[%clk 0:00:35]}  Rd8 {[%clk 0:01:28]} 24. Qb5 {[%clk 0:00:33]}  b6 {[%clk 0:01:07]} 25. c3 {[%clk 0:00:31]}  Bc5 {[%clk 0:01:05]} 26. Bxc5 {[%clk 0:00:28]}  bxc5 {[%clk 0:01:02]} 27. Qa5 {[%clk 0:00:14]}  Re8 {[%clk 0:00:54]} 28. Qa6 {[%clk 0:00:01]}  Qe1+ {[%clk 0:00:51]} 0-1


[Site "https://www.chess.com"]

[Event "Titled Tuesday Blitz May 17 Late 2022"]
[White "Yuan, Qingyu"]
[Black "Martinez Alcantara, Jose Eduardo"]
[WhiteFideId "8609772"]
[BlackFideId "3805662"]
[WhiteElo "2359"]
[BlackElo "2690"]
[Result "0-1"]
[Round "03"]
[TimeControl "180+1"]
[Date "2022.05.17"]
[WhiteClock "0:00:02"]
[BlackClock "0:00:08"]

1. e4 {[%clk 0:03:00]}  c5 {[%clk 0:02:59]} 2. Nf3 {[%clk 0:03:00]}  d6 {[%clk 0:03:00]} 3. Bb5+ {[%clk 0:03:01]}  Nd7 {[%clk 0:02:59]} 4. c4 {[%clk 0:03:01]}  Nf6 {[%clk 0:02:58]} 5. Nc3 {[%clk 0:03:01]}  e6 {[%clk 0:02:58]} 6. O-O {[%clk 0:02:56]}  Be7 {[%clk 0:02:58]} 7. Qe2 {[%clk 0:02:45]}  O-O {[%clk 0:02:57]} 8. Rd1 {[%clk 0:02:45]}  a6 {[%clk 0:02:55]} 9. Ba4 {[%clk 0:02:43]}  Ne5 {[%clk 0:02:55]} 10. d4 {[%clk 0:02:36]}  Nxf3+ {[%clk 0:02:53]} 11. Qxf3 {[%clk 0:02:36]}  cxd4 {[%clk 0:02:53]} 12. Rxd4 {[%clk 0:02:37]}  Qc7 {[%clk 0:02:51]} 13. Qe2 {[%clk 0:02:22]}  b6 {[%clk 0:02:49]} 14. Bc2 {[%clk 0:02:19]}  Bb7 {[%clk 0:02:45]} 15. Bg5 {[%clk 0:02:14]}  Rac8 {[%clk 0:02:40]} 16. Rad1 {[%clk 0:02:12]}  Rfe8 {[%clk 0:02:20]} 17. Ba4 {[%clk 0:02:07]}  Red8 {[%clk 0:02:20]} 18. h3 {[%clk 0:01:58]}  h6 {[%clk 0:02:20]} 19. Bh4 {[%clk 0:01:57]}  g5 {[%clk 0:02:08]} 20. Bg3 {[%clk 0:01:55]}  e5 {[%clk 0:02:09]} 21. R4d3 {[%clk 0:01:39]}  Qxc4 {[%clk 0:02:09]} 22. Bxe5 {[%clk 0:01:26]}  Qe6 {[%clk 0:01:39]} 23. Bd4 {[%clk 0:01:09]}  Nd7 {[%clk 0:01:03]} 24. Bb3 {[%clk 0:01:03]}  Qg6 {[%clk 0:01:03]} 25. Rf3 {[%clk 0:00:51]}  Rf8 {[%clk 0:01:02]} 26. Nd5 {[%clk 0:00:45]}  Bxd5 {[%clk 0:01:02]} 27. Bxd5 {[%clk 0:00:44]}  a5 {[%clk 0:00:40]} 28. Rb3 {[%clk 0:00:20]}  Bf6 {[%clk 0:00:38]} 29. Bxb6 {[%clk 0:00:15]}  a4 {[%clk 0:00:38]} 30. Rb5 {[%clk 0:00:14]}  Be5 {[%clk 0:00:30]} 31. Bd4 {[%clk 0:00:11]}  Qf6 {[%clk 0:00:29]} 32. Bxe5 {[%clk 0:00:11]}  Nxe5 {[%clk 0:00:30]} 33. Qd2 {[%clk 0:00:09]}  Rb8 {[%clk 0:00:28]} 34. Qb4 {[%clk 0:00:09]}  Rxb5 {[%clk 0:00:28]} 35. Qxb5 {[%clk 0:00:10]}  g4 {[%clk 0:00:29]} 36. h4 {[%clk 0:00:05]}  Qxh4 {[%clk 0:00:27]} 37. Qxa4 {[%clk 0:00:05]}  Kh7 {[%clk 0:00:22]} 38. Qb3 {[%clk 0:00:05]}  Qg5 {[%clk 0:00:13]} 39. Qe3 {[%clk 0:00:04]}  Qf6 {[%clk 0:00:14]} 40. b4 {[%clk 0:00:03]}  Rb8 {[%clk 0:00:13]} 41. a3 {[%clk 0:00:03]}  h5 {[%clk 0:00:13]} 42. Rc1 {[%clk 0:00:03]}  h4 {[%clk 0:00:14]} 43. Rc7 {[%clk 0:00:04]}  h3 {[%clk 0:00:14]} 44. Qg3 {[%clk 0:00:02]}  Rg8 {[%clk 0:00:11]} 45. Kh2 {[%clk 0:00:02]}  Rg6 {[%clk 0:00:09]} 46. b5 {[%clk 0:00:02]}  Rh6 {[%clk 0:00:10]} 47. Kg1 {[%clk 0:00:03]}  hxg2 {[%clk 0:00:10]} 48. Kxg2 {[%clk 0:00:03]}  Rh3 {[%clk 0:00:08]} 49. b6 {[%clk 0:00:03]}  Rxg3+ {[%clk 0:00:09]} 50. fxg3 {[%clk 0:00:03]}  Qf3+ {[%clk 0:00:09]} 51. Kg1 {[%clk 0:00:03]}  Qxg3+ {[%clk 0:00:10]} 52. Kf1 {[%clk 0:00:04]}  Qd3+ {[%clk 0:00:09]} 53. Kg2 {[%clk 0:00:04]}  Qe2+ {[%clk 0:00:09]} 54. Kh1 {[%clk 0:00:02]}  Qf1+ {[%clk 0:00:08]} 55. Kh2 {[%clk 0:00:02]}  Qf2+ {[%clk 0:00:09]} 56. Kh1 {[%clk 0:00:03]}  g3 {[%clk 0:00:09]} 57. Rc2 {[%clk 0:00:02]}  Qf1# {[%clk 0:00:08]} 0-1


[Site "https://www.chess.com"]

[Event "Titled Tuesday Blitz May 17 Late 2022"]
[White "Aggelis, Nikolaos"]
[Black "Shimanov, Aleksandr"]
[WhiteFideId "4213220"]
[BlackFideId "4198603"]
[WhiteElo "2154"]
[BlackElo "2605"]
[Result "0-1"]
[Round "04"]
[TimeControl "180+1"]
[Date "2022.05.17"]
[WhiteClock "0:00:04"]
[BlackClock "0:01:08"]

1. d4 {[%clk 0:03:00]}  Nf6 {[%clk 0:02:59]} 2. Nf3 {[%clk 0:03:01]}  g6 {[%clk 0:03:00]} 3. g3 {[%clk 0:03:01]}  Bg7 {[%clk 0:03:00]} 4. Bg2 {[%clk 0:03:02]}  b6 {[%clk 0:03:00]} 5. O-O {[%clk 0:03:03]}  Bb7 {[%clk 0:03:00]} 6. b3 {[%clk 0:03:04]}  O-O {[%clk 0:03:00]} 7. Bb2 {[%clk 0:03:04]}  c5 {[%clk 0:02:58]} 8. Nbd2 {[%clk 0:03:04]}  d6 {[%clk 0:02:57]} 9. Re1 {[%clk 0:03:03]}  cxd4 {[%clk 0:02:53]} 10. Nxd4 {[%clk 0:03:01]}  Bxg2 {[%clk 0:02:48]} 11. Kxg2 {[%clk 0:03:02]}  d5 {[%clk 0:02:42]} 12. c4 {[%clk 0:02:41]}  e5 {[%clk 0:02:37]} 13. Nb5 {[%clk 0:02:32]}  Nc6 {[%clk 0:02:34]} 14. Nf3 {[%clk 0:02:23]}  d4 {[%clk 0:02:26]} 15. Ba3 {[%clk 0:02:05]}  Re8 {[%clk 0:02:24]} 16. Nd6 {[%clk 0:02:01]}  Re6 {[%clk 0:02:24]} 17. Nb5 {[%clk 0:01:43]}  a6 {[%clk 0:02:23]} 18. Nd6 {[%clk 0:01:33]}  Rxd6 {[%clk 0:02:22]} 19. Bxd6 {[%clk 0:01:34]}  Qxd6 {[%clk 0:02:23]} 20. c5 {[%clk 0:01:28]}  bxc5 {[%clk 0:02:15]} 21. Rc1 {[%clk 0:01:27]}  e4 {[%clk 0:02:11]} 22. Ng5 {[%clk 0:01:24]}  Qd5 {[%clk 0:02:08]} 23. Nh3 {[%clk 0:01:24]}  e3+ {[%clk 0:02:07]} 24. f3 {[%clk 0:01:24]}  g5 {[%clk 0:02:05]} 25. Qc2 {[%clk 0:01:16]}  Bf8 {[%clk 0:02:05]} 26. Kg1 {[%clk 0:00:58]}  h6 {[%clk 0:01:52]} 27. Red1 {[%clk 0:00:56]}  a5 {[%clk 0:01:40]} 28. Qc4 {[%clk 0:00:51]}  Qxc4 {[%clk 0:01:38]} 29. Rxc4 {[%clk 0:00:52]}  Nb4 {[%clk 0:01:36]} 30. a3 {[%clk 0:00:49]}  Na2 {[%clk 0:01:35]} 31. Kg2 {[%clk 0:00:25]}  Nc3 {[%clk 0:01:34]} 32. Rd3 {[%clk 0:00:24]}  Nxe2 {[%clk 0:01:28]} 33. Ng1 {[%clk 0:00:21]}  Nxg1 {[%clk 0:01:27]} 34. Kxg1 {[%clk 0:00:22]}  Rb8 {[%clk 0:01:23]} 35. Kf1 {[%clk 0:00:19]}  Nd5 {[%clk 0:01:23]} 36. Ke2 {[%clk 0:00:16]}  a4 {[%clk 0:01:20]} 37. b4 {[%clk 0:00:12]}  Nc3+ {[%clk 0:01:17]} 38. Kf1 {[%clk 0:00:11]}  cxb4 {[%clk 0:01:16]} 39. Rcxd4 {[%clk 0:00:10]}  b3 {[%clk 0:01:10]} 40. Rxc3 {[%clk 0:00:07]}  b2 {[%clk 0:01:10]} 41. Rd1 {[%clk 0:00:07]}  b1=Q {[%clk 0:01:10]} 42. Rxb1 {[%clk 0:00:08]}  Rxb1+ {[%clk 0:01:11]} 43. Ke2 {[%clk 0:00:08]}  Rb3 {[%clk 0:01:12]} 44. Rc4 {[%clk 0:00:04]}  Rxa3 {[%clk 0:01:11]} 45. h4 {[%clk 0:00:04]}  Kg7 {[%clk 0:01:07]} 46. hxg5 {[%clk 0:00:04]}  hxg5 {[%clk 0:01:08]} 47. Rc5 {[%clk 0:00:04]} 0-1


[Site "https://www.chess.com"]

[Event "Titled Tuesday Blitz May 17 Late 2022"]
[White "Bok, Benjamin"]
[Black "Moskalenko, Alexander"]
[WhiteFideId "1017063"]
[BlackFideId "4155351"]
[WhiteElo "2658"]
[BlackElo "2434"]
[Result "1-0"]
[Round "04"]
[TimeControl "180+1"]
[Date "2022.05.17"]
[WhiteClock "0:00:08"]
[BlackClock "0:00:26"]

1. d4 {[%clk 0:03:00]}  e6 {[%clk 0:02:52]} 2. c4 {[%clk 0:03:00]}  Bb4+ {[%clk 0:02:51]} 3. Nd2 {[%clk 0:02:58]}  d5 {[%clk 0:02:49]} 4. Qa4+ {[%clk 0:02:52]}  Nc6 {[%clk 0:02:49]} 5. e3 {[%clk 0:02:49]}  Nf6 {[%clk 0:02:49]} 6. Nf3 {[%clk 0:02:49]}  O-O {[%clk 0:02:48]} 7. a3 {[%clk 0:02:48]}  Be7 {[%clk 0:02:38]} 8. Bd3 {[%clk 0:02:39]}  a5 {[%clk 0:02:08]} 9. O-O {[%clk 0:02:32]}  Re8 {[%clk 0:01:52]} 10. b4 {[%clk 0:02:20]}  Bd7 {[%clk 0:01:50]} 11. b5 {[%clk 0:02:20]}  Na7 {[%clk 0:01:50]} 12. c5 {[%clk 0:02:08]}  Rf8 {[%clk 0:01:49]} 13. Rb1 {[%clk 0:02:05]}  b6 {[%clk 0:01:48]} 14. c6 {[%clk 0:02:01]}  Be8 {[%clk 0:01:48]} 15. Qc2 {[%clk 0:01:56]}  Nc8 {[%clk 0:01:47]} 16. e4 {[%clk 0:01:53]}  dxe4 {[%clk 0:01:47]} 17. Nxe4 {[%clk 0:01:54]}  Nxe4 {[%clk 0:01:47]} 18. Bxe4 {[%clk 0:01:55]}  f5 {[%clk 0:01:28]} 19. Bd3 {[%clk 0:01:52]}  Bf6 {[%clk 0:01:29]} 20. Bc4 {[%clk 0:01:48]}  Bf7 {[%clk 0:01:27]} 21. Ne5 {[%clk 0:01:29]}  Bxe5 {[%clk 0:01:14]} 22. dxe5 {[%clk 0:01:30]}  Ne7 {[%clk 0:01:13]} 23. Bg5 {[%clk 0:01:16]}  Qe8 {[%clk 0:01:12]} 24. Rbd1 {[%clk 0:00:58]}  Nd5 {[%clk 0:01:09]} 25. Rfe1 {[%clk 0:00:51]}  h6 {[%clk 0:00:51]} 26. Bc1 {[%clk 0:00:50]}  Rd8 {[%clk 0:00:51]} 27. Rd3 {[%clk 0:00:29]}  f4 {[%clk 0:00:48]} 28. Rd4 {[%clk 0:00:27]}  g5 {[%clk 0:00:40]} 29. Bb2 {[%clk 0:00:17]}  Bg6 {[%clk 0:00:40]} 30. Qd2 {[%clk 0:00:16]}  Bf5 {[%clk 0:00:33]} 31. Bxd5 {[%clk 0:00:15]}  exd5 {[%clk 0:00:32]} 32. Rxd5 {[%clk 0:00:15]}  Be6 {[%clk 0:00:32]} 33. Rxd8 {[%clk 0:00:14]}  Qxd8 {[%clk 0:00:33]} 34. Qc2 {[%clk 0:00:15]}  Qe8 {[%clk 0:00:24]} 35. Rd1 {[%clk 0:00:15]}  Qf7 {[%clk 0:00:25]} 36. f3 {[%clk 0:00:14]}  Bb3 {[%clk 0:00:25]} 37. e6 {[%clk 0:00:12]}  Qxe6 {[%clk 0:00:17]} 38. Qc3 {[%clk 0:00:07]}  Qe3+ {[%clk 0:00:17]} 39. Qxe3 {[%clk 0:00:07]}  fxe3 {[%clk 0:00:18]} 40. Rd7 {[%clk 0:00:05]}  Rf7 {[%clk 0:00:17]} 41. Be5 {[%clk 0:00:03]}  Bc4 {[%clk 0:00:15]} 42. Bxc7 {[%clk 0:00:03]}  Bxb5 {[%clk 0:00:16]} 43. Rxf7 {[%clk 0:00:03]}  Kxf7 {[%clk 0:00:16]} 44. Bxb6 {[%clk 0:00:04]}  e2 {[%clk 0:00:16]} 45. Kf2 {[%clk 0:00:04]}  Bxc6 {[%clk 0:00:16]} 46. Bxa5 {[%clk 0:00:05]}  Bb5 {[%clk 0:00:16]} 47. Bb4 {[%clk 0:00:05]}  Ba6 {[%clk 0:00:17]} 48. Ke3 {[%clk 0:00:05]}  Kg6 {[%clk 0:00:17]} 49. Kd4 {[%clk 0:00:05]}  h5 {[%clk 0:00:16]} 50. Bd2 {[%clk 0:00:05]}  g4 {[%clk 0:00:16]} 51. fxg4 {[%clk 0:00:04]}  hxg4 {[%clk 0:00:17]} 52. a4 {[%clk 0:00:04]}  Kf5 {[%clk 0:00:17]} 53. a5 {[%clk 0:00:04]}  Ke6 {[%clk 0:00:17]} 54. Kc5 {[%clk 0:00:04]}  Kd7 {[%clk 0:00:17]} 55. Kb6 {[%clk 0:00:05]}  Bd3 {[%clk 0:00:17]} 56. a6 {[%clk 0:00:05]}  Be4 {[%clk 0:00:15]} 57. a7 {[%clk 0:00:05]}  Bxg2 {[%clk 0:00:15]} 58. Be1 {[%clk 0:00:03]}  Kc8 {[%clk 0:00:15]} 59. Kc5 {[%clk 0:00:03]}  Kb7 {[%clk 0:00:15]} 60. Kd4 {[%clk 0:00:03]}  Kxa7 {[%clk 0:00:15]} 61. Ke3 {[%clk 0:00:04]}  Bf3 {[%clk 0:00:15]} 62. Kf2 {[%clk 0:00:03]}  Kb7 {[%clk 0:00:15]} 63. h3 {[%clk 0:00:03]}  g3+ {[%clk 0:00:15]} 64. Kxf3 {[%clk 0:00:03]}  g2 {[%clk 0:00:16]} 65. Kxg2 {[%clk 0:00:03]}  Kc6 {[%clk 0:00:16]} 66. Kf2 {[%clk 0:00:04]}  Kd5 {[%clk 0:00:17]} 67. Kxe2 {[%clk 0:00:04]}  Ke6 {[%clk 0:00:18]} 68. Kf3 {[%clk 0:00:04]}  Kf7 {[%clk 0:00:19]} 69. Kg4 {[%clk 0:00:05]}  Kg6 {[%clk 0:00:20]} 70. h4 {[%clk 0:00:05]}  Kh7 {[%clk 0:00:21]} 71. h5 {[%clk 0:00:06]}  Kh6 {[%clk 0:00:22]} 72. Bd2+ {[%clk 0:00:06]}  Kh7 {[%clk 0:00:23]} 73. Kg5 {[%clk 0:00:07]}  Kg8 {[%clk 0:00:24]} 74. Kg6 {[%clk 0:00:07]}  Kh8 {[%clk 0:00:24]} 75. h6 {[%clk 0:00:08]}  Kg8 {[%clk 0:00:25]} 76. h7+ {[%clk 0:00:08]}  Kh8 {[%clk 0:00:26]} 77. Bc3# {[%clk 0:00:08]} 1-0


[Site "https://www.chess.com"]